bitfinex-derivatives/quotes_BNBF0:USTF0_20250309
["timestamp","ask_amount","ask_price","bid_price","bid_amount"]
[1741548665169,0.31176091,558.55,557.49,0.2938034]
[1741548665374,0.31176091,558.55,557.5,0.2938034]
[1741548665575,0.31176091,558.55,557.47,0.2938034]
[1741548665882,0.31176091,558.55,557.48,0.2938034]
[1741548666077,0.31176091,558.55,557.5,0.35874439]
[1741548666370,0.31176091,558.55,557.51,0.2938034]
[1741548666976,1.274,558.59,557.51,0.2938034]
[1741548667372,0.31177208,558.54,557.52,1.33134438]
[1741548667572,0.31177208,558.54,557.53,0.2938034]
[1741548667974,0.31177208,558.54,557.55,0.35871222]
[1741548668183,0.31177208,558.54,557.56,0.2938034]
[1741548668374,0.31177208,558.54,557.58,0.35869292]
[1741548668777,0.31177208,558.54,557.59,0.29395418]
[1741548669481,0.31177208,558.54,557.6,0.29395418]
[1741548669776,0.31177208,558.54,557.65,1.33134438]
[1741548669981,0.31177208,558.54,557.66,0.29395418]
[1741548670184,0.31177208,558.54,557.67,0.29395418]
[1741548670385,0.31177208,558.54,557.69,0.35862217]
[1741548670586,0.31177208,558.54,557.7,0.29395418]
[1741548670789,0.31177208,558.54,557.72,0.35860288]
[1741548670979,0.31177208,558.54,557.73,0.29395418]
[1741548671189,0.31177208,558.54,557.75,0.35858359]
[1741548671487,0.31177208,558.54,557.76,0.29395418]
[1741548671881,0.31177208,558.54,557.77,0.35857073]
[1741548672082,0.31177208,558.54,557.78,0.29395418]
[1741548672278,0.31177208,558.54,557.79,0.35855788]
[1741548672676,0.31177208,558.54,557.8,0.29395418]
[1741548672880,0.31177208,558.54,557.82,1.33134438]
[1741548673088,1.1234486,558.63,557.83,0.29395418]
[1741548673281,1.12350696,558.62,557.84,0.35852574]
[1741548673584,1.79445639,558.66,557.85,0.29395418]
[1741548673888,1.3667715,558.64,557.86,0.35851288]
[1741548674082,1.3667715,558.64,557.87,0.29395418]
[1741548674283,1.79445639,558.66,557.88,0.35850003]
[1741548674478,0.31168831,558.63,557.88,0.35850003]
[1741548674678,0.31168831,558.63,557.89,0.29395418]
[1741548676183,1.074,558.65,557.9,0.29424467]
[1741548676382,1.074,558.65,557.89,0.29424467]
[1741548676580,1.074,558.65,557.91,0.29424467]
[1741548676777,1.074,558.65,557.92,0.29424467]
[1741548676978,1.074,558.65,557.89,0.29424467]
[1741548677183,1.074,558.65,557.9,0.65273185]
[1741548677384,0.31162691,558.64,557.91,0.29424467]
[1741548678885,1.074,558.65,557.91,0.29424467]
[1741548679582,1.074,558.65,557.92,0.29424467]
[1741548679787,1.074,558.65,557.93,0.29347453]
[1741548679981,1.074,558.65,557.94,0.29347453]
[1741548680486,1.074,558.65,557.95,0.29347453]
[1741548680688,1.074,558.65,557.96,0.29347453]
[1741548680886,1.074,558.65,557.97,0.29347453]
[1741548681087,1.074,558.65,557.98,0.29347453]
[1741548681384,1.074,558.65,557.99,0.29347453]
[1741548681591,1.074,558.65,558.0,0.29347453]
[1741548681782,1.074,558.65,557.9,0.35848718]
[1741548681783,1.074,558.65,558.01,0.29347453]
[1741548681988,1.074,558.65,557.9,0.35848718]
[1741548681989,1.074,558.65,558.02,0.29347453]
[1741548682286,1.074,558.65,558.03,0.29347453]
[1741548682489,1.074,558.65,558.04,0.29347453]
[1741548682687,1.074,558.65,557.9,0.35848718]
[1741548682688,1.074,558.65,558.05,0.29347453]
[1741548682884,1.074,558.65,558.06,0.29347453]
[1741548683085,1.074,558.65,558.07,0.29347453]
[1741548683385,1.074,558.65,558.08,0.29347453]
[1741548683586,1.074,558.65,558.09,0.29347453]
[1741548683782,1.074,558.65,558.1,0.29347453]
[1741548684096,1.074,558.65,558.11,0.29347453]
[1741548684395,1.074,558.65,558.12,0.29347453]
[1741548684591,1.074,558.65,557.91,0.29347453]
[1741548684791,1.074,558.65,558.13,0.29347453]
[1741548685085,1.074,558.65,558.14,0.29347453]
[1741548685294,1.074,558.65,558.15,0.29347453]
[1741548685590,1.074,558.65,557.9,0.35848718]
[1741548685591,1.074,558.65,557.91,0.29347453]
[1741548685792,1.074,558.65,557.92,0.29347453]
[1741548685988,1.074,558.65,557.93,0.29347453]
[1741548686387,1.074,558.65,557.94,0.29347453]
[1741548686786,1.074,558.65,557.95,0.29347453]
[1741548686987,1.074,558.65,557.96,0.29347453]
[1741548687287,1.074,558.65,557.9,0.35848718]
[1741548687499,1.074,558.65,557.91,0.29354633]
[1741548687693,1.074,558.65,557.92,0.29354633]
[1741548687999,1.074,558.65,557.93,0.29354633]
[1741548688188,1.074,558.65,557.94,0.29354633]
[1741548688692,1.074,558.65,557.95,0.29354633]
[1741548688889,1.074,558.65,557.96,0.29354633]
[1741548689086,1.074,558.65,557.97,0.29354633]
[1741548689291,1.074,558.65,557.98,0.29354633]
[1741548689492,1.074,558.65,557.99,0.29354633]
[1741548689691,1.074,558.65,558.0,0.29354633]
[1741548689888,1.074,558.65,558.01,0.29354633]
[1741548690086,1.074,558.65,558.02,0.29354633]
[1741548690291,1.074,558.65,558.03,0.29354633]
[1741548690691,1.074,558.65,558.04,0.29354633]
[1741548691094,1.074,558.65,558.05,0.29354633]
[1741548691414,1.074,558.65,558.06,0.29354633]
[1741548691896,1.074,558.65,558.07,0.29354633]
[1741548692094,1.074,558.65,558.08,0.29354633]
[1741548692294,1.074,558.65,558.09,0.29354633]
[1741548692494,1.074,558.65,558.1,0.29354633]
[1741548692692,1.074,558.65,558.11,0.29354633]
[1741548692888,1.074,558.65,558.12,0.29354633]
[1741548693092,1.074,558.65,558.13,0.29354633]
[1741548693392,1.074,558.65,558.14,0.29354633]
[1741548693790,1.074,558.65,557.9,0.35848718]
[1741548693791,1.074,558.65,558.15,0.29354633]
[1741548694000,1.074,558.65,558.16,0.29354633]
[1741548694198,1.074,558.65,558.17,0.29354633]
[1741548694395,1.074,558.65,558.18,0.29354633]
[1741548694605,1.074,558.65,558.19,0.29354633]
[1741548694807,1.074,558.65,558.2,0.29354633]
[1741548695006,1.074,558.65,558.21,0.29354633]
[1741548695213,1.074,558.65,557.91,0.29354633]
[1741548695409,1.074,558.65,557.92,0.29354633]
[1741548695608,1.074,558.65,557.93,0.29354633]
[1741548695808,1.074,558.65,557.94,0.29354633]
[1741548696009,1.074,558.65,557.95,0.29354633]
[1741548696208,1.074,558.65,557.96,0.29354633]
[1741548696613,1.074,558.65,557.97,0.29354633]
[1741548696822,1.074,558.65,557.98,0.29354633]
[1741548697136,1.074,558.65,557.99,0.29354633]
[1741548697331,1.074,558.65,558.0,0.29354633]
[1741548697527,1.074,558.65,558.01,0.29354633]
[1741548697730,1.074,558.65,558.02,0.29354633]
[1741548697927,1.074,558.65,558.03,0.29354633]
[1741548698432,1.074,558.65,558.04,0.29354633]
[1741548698633,1.074,558.65,558.05,0.29354633]
[1741548698934,1.074,558.65,558.06,0.29354633]
[1741548699225,1.074,558.65,558.07,0.29354633]
[1741548699435,1.074,558.65,558.08,0.29354633]
[1741548699631,1.074,558.65,557.9,0.35848718]
[1741548699632,1.074,558.65,558.09,0.29256104]
[1741548699836,1.074,558.65,558.1,0.29256104]
[1741548700138,1.074,558.65,558.11,0.29256104]
[1741548700434,1.074,558.65,558.12,0.29256104]
[1741548700627,1.074,558.65,558.13,0.29256104]
[1741548700835,1.074,558.65,558.14,0.29256104]
[1741548701123,1.074,558.65,558.15,0.29256104]
[1741548701332,1.074,558.65,558.16,0.29256104]
[1741548701526,1.074,558.65,558.17,0.29256104]
[1741548701731,1.074,558.65,558.18,0.29256104]
[1741548701928,1.074,558.65,557.9,0.35848718]
[1741548702129,1.074,558.65,557.91,0.2919187]
[1741548702423,1.074,558.65,557.92,0.2919187]
[1741548702728,1.79445639,558.66,557.93,0.2919187]
[1741548702928,1.79445639,558.66,557.94,0.2919187]
[1741548703136,1.79445639,558.66,557.95,0.2919187]
[1741548703630,1.79445639,558.66,557.96,0.2919187]
[1741548703828,1.79445639,558.66,557.97,0.2919187]
[1741548704138,1.79445639,558.66,557.98,0.2919187]
[1741548704425,1.79445639,558.66,557.99,0.2919187]
[1741548704633,1.79445639,558.66,558.0,0.2919187]
[1741548704827,1.79445639,558.66,558.01,0.2919187]
[1741548705031,1.79445639,558.66,558.02,0.2919187]
[1741548705225,1.79445639,558.66,558.03,0.2919187]
[1741548705528,1.79445639,558.66,558.04,0.2919187]
[1741548705732,1.79445639,558.66,557.9,0.35848718]
[1741548705931,1.79445639,558.66,557.91,0.29231837]
[1741548706133,1.79445639,558.66,557.92,0.29231837]
[1741548706433,1.79445639,558.66,557.93,0.29231837]
[1741548706735,1.79445639,558.66,557.94,0.29231837]
[1741548706933,1.79445639,558.66,557.95,0.29231837]
[1741548707128,1.79445639,558.66,557.96,0.29231837]
[1741548707329,1.79445639,558.66,557.97,0.29231837]
[1741548707526,1.79445639,558.66,557.98,0.29231837]
[1741548707831,1.79445639,558.66,557.99,0.29231837]
[1741548708031,1.79445639,558.66,558.0,0.29231837]
[1741548708537,1.79445639,558.66,557.9,0.35848718]
[1741548708538,1.79445639,558.66,558.01,0.29231837]
[1741548708730,1.79445639,558.66,558.02,0.29231837]
[1741548709029,1.79445639,558.66,558.03,0.29231837]
[1741548709254,1.79445639,558.66,558.04,0.29231837]
[1741548709529,1.79445639,558.66,558.05,0.29231837]
[1741548709726,1.79445639,558.66,558.06,0.29231837]
[1741548709930,1.79445639,558.66,558.07,0.29231837]
[1741548710128,1.79445639,558.66,558.08,0.29231837]
[1741548710423,1.79445639,558.66,558.09,0.29231837]
[1741548710728,1.79445639,558.66,558.1,0.29231837]
[1741548710929,1.79445639,558.66,557.91,0.29231837]
[1741548711127,1.79445639,558.66,557.9,0.35848718]
[1741548711323,1.79445639,558.66,557.91,0.2931553]
[1741548711518,1.79445639,558.66,557.92,0.2931553]
[1741548711734,1.79445639,558.66,557.9,0.35848718]
[1741548711735,1.79445639,558.66,557.93,0.2931553]
[1741548712023,1.79445639,558.66,557.94,0.2931553]
[1741548712220,1.79445639,558.66,557.95,0.2931553]
[1741548712421,1.79445639,558.66,557.96,0.2931553]
[1741548712726,1.79445639,558.66,557.97,0.2931553]
[1741548713121,1.79445639,558.66,557.98,0.2931553]
[1741548713325,1.79445639,558.66,557.9,0.35848718]
[1741548713326,1.79445639,558.66,557.99,0.2931553]
[1741548713629,1.79445639,558.66,558.0,0.2931553]
[1741548713823,1.79445639,558.66,558.01,0.2931553]
[1741548714023,1.79445639,558.66,558.02,0.2931553]
[1741548714223,1.79445639,558.66,558.03,0.2931553]
[1741548714424,1.79445639,558.66,558.04,0.2931553]
[1741548714622,1.79445639,558.66,558.05,0.2931553]
[1741548714822,1.79445639,558.66,558.03,1.33134438]
[1741548715026,1.79445639,558.66,558.04,0.29288793]
[1741548715228,1.79445639,558.66,558.05,0.29288793]
[1741548715523,1.79445639,558.66,558.06,0.29288793]
[1741548715819,1.79445639,558.66,558.07,0.29288793]
[1741548716020,1.79445639,558.66,558.08,0.29288793]
[1741548716307,1.79445639,558.66,558.09,0.29288793]
[1741548716510,1.79445639,558.66,558.1,0.29288793]
[1741548716812,1.79445639,558.66,558.11,0.29288793]
[1741548717109,1.79445639,558.66,558.12,0.29288793]
[1741548717409,1.79445639,558.66,558.13,0.29288793]
[1741548717607,1.79445639,558.66,558.14,0.29288793]
[1741548717907,1.79445639,558.66,558.15,0.29288793]
[1741548718107,1.79445639,558.66,558.16,0.29288793]
[1741548718503,1.79445639,558.66,558.17,0.29288793]
[1741548718801,1.79445639,558.66,558.18,0.29288793]
[1741548719000,1.79445639,558.66,558.17,0.35831377]
[1741548719305,1.79445639,558.66,558.18,0.29242493]
[1741548719606,1.79445639,558.66,558.19,0.29242493]
[1741548719805,1.79445639,558.66,558.2,0.65071944]
[1741548720108,1.79445639,558.66,558.21,0.29242493]
[1741548720301,1.79445639,558.66,558.22,0.35828168]
[1741548720509,1.79445639,558.66,558.23,0.29242493]
[1741548721107,1.79445639,558.66,558.22,0.35828168]
[1741548721108,1.79445639,558.66,558.24,0.29242493]
[1741548721307,1.79445639,558.66,558.25,0.35826242]
[1741548721508,1.79445639,558.66,558.26,0.29242493]
[1741548721708,1.79445639,558.66,558.27,0.65067452]
[1741548722011,1.79445639,558.66,558.28,0.6506681]
[1741548722209,1.79445639,558.66,558.29,0.29242493]
[1741548722412,1.79445639,558.66,558.3,0.65065527]
[1741548722607,1.79445639,558.66,558.31,0.29242493]
[1741548722802,1.79445639,558.66,558.3,0.35823034]
[1741548722803,1.79445639,558.66,558.32,0.29242493]
[1741548723105,1.79445639,558.66,558.33,0.29242493]
[1741548723411,1.79445639,558.66,558.34,0.29300408]
[1741548723610,1.79445639,558.66,558.35,0.35819826]
[1741548723811,1.79445639,558.66,558.36,0.29300408]
[1741548724212,1.79445639,558.66,558.35,0.35819826]
[1741548724213,1.79445639,558.66,558.37,0.2932217]
[1741548724509,1.79445639,558.66,558.25,1.33134438]
[1741548724510,1.79445639,558.66,558.38,0.65140071]
[1741548724710,1.79445639,558.66,558.39,0.6513943]
[1741548724909,1.79445639,558.66,558.4,0.65138788]
[1741548725109,1.79445639,558.66,558.41,0.35815977]
[1741548725312,1.79445639,558.66,558.42,0.2932217]
[1741548725512,1.79445639,558.66,558.43,0.35814694]
[1741548725703,1.79445639,558.66,558.44,0.2932217]
[1741548725909,1.79445639,558.66,558.45,0.35813412]
[1741548726110,1.79445639,558.66,558.46,0.2932217]
[1741548726309,1.79445639,558.66,558.47,0.2932217]
[1741548726511,1.79445639,558.66,558.48,0.65133658]
[1741548726711,1.79445639,558.66,558.49,0.65133017]
[1741548726913,1.79445639,558.66,558.5,0.2932217]
[1741548727208,1.79445639,558.66,558.51,0.2932217]
[1741548727404,1.79445639,558.66,558.52,0.2932217]
[1741548727610,1.79445639,558.66,558.53,0.2932217]
[1741548727807,1.79445639,558.66,558.54,0.2932217]
[1741548728011,1.79445639,558.66,558.5,0.35810205]
[1741548728012,1.79445639,558.66,558.55,1.62456608]
[1741548728206,1.79445639,558.66,558.56,0.2932217]
[1741548728514,1.79445639,558.66,558.57,0.2932217]
[1741548728909,1.79445639,558.66,558.58,0.2932217]
[1741548729115,1.79445639,558.66,558.56,0.2932217]
[1741548729316,1.79445639,558.66,558.57,0.2932217]
[1741548729513,1.79445639,558.66,558.56,0.2932217]
[1741548729715,1.79445639,558.66,558.58,0.2932217]
[1741548729909,1.79445639,558.66,558.59,0.2932217]
[1741548730210,1.79445639,558.66,558.6,0.2932217]
[1741548730512,1.79445639,558.66,558.61,0.2932217]
[1741548730712,0.12506993,558.66,558.62,0.2932217]
[1741548730909,0.12506993,558.66,558.63,0.2932217]
[1741548731112,0.12506993,558.66,558.64,0.2932217]
[1741548731412,0.12506993,558.66,558.65,0.2932217]
[1741548732605,0.12506993,558.66,558.51,0.2932217]
[1741548732809,0.12506993,558.66,558.55,1.33134438]
[1741548733014,0.12506993,558.66,558.56,0.2932217]
[1741548733216,0.12506993,558.66,558.57,0.2932217]
[1741548733414,0.12506993,558.66,558.58,0.2932217]
[1741548733614,0.12506993,558.66,558.59,0.2932217]
[1741548733814,0.12506993,558.66,558.56,0.2932217]
[1741548734009,0.12506993,558.66,558.57,0.2932217]
[1741548734220,0.12506993,558.66,558.58,0.2918533]
[1741548734515,0.12506993,558.66,558.59,0.2918533]
[1741548734918,0.12506993,558.66,558.6,0.2918533]
[1741548735216,0.12506993,558.66,558.61,0.2918533]
[1741548735422,0.12506993,558.66,558.62,0.2918533]
[1741548735617,0.48457891,558.67,558.63,0.2918533]
[1741548735917,0.48457891,558.67,558.64,0.2918533]
[1741548736108,0.14832429,558.67,558.65,0.2918533]
[1741548736313,0.14832429,558.67,558.66,0.2918533]
[1741548737217,0.14832429,558.67,558.66,0.2913316]
[1741548737923,0.14832429,558.67,558.62,1.59761325]
[1741548738122,0.14832429,558.67,558.63,0.29133349]
[1741548738422,0.14832429,558.67,558.64,0.29133349]
[1741548738621,0.14832429,558.67,558.65,0.29133349]
[1741548738823,0.14832429,558.67,558.66,0.29133349]
[1741548740921,0.97973299,558.89,558.66,0.29133349]
[1741548741122,0.97973299,558.89,558.67,0.29133349]
[1741548741342,0.97973299,558.89,558.68,0.29133349]
[1741548741520,0.97973299,558.89,558.58,0.29133349]
[1741548741718,0.97973299,558.89,558.59,0.29133349]
[1741548741924,0.97973299,558.89,558.6,0.29133349]
[1741548742226,0.30728058,558.89,558.82,1.58684977]
[1741548742520,0.30728058,558.89,558.83,0.29133349]
[1741548742725,0.30728058,558.89,558.84,0.29133349]
[1741548742927,0.30728058,558.89,558.85,0.29133349]
[1741548743128,1.33134438,559.67,558.86,0.29133349]
[1741548743319,1.33134438,559.67,558.87,0.29133349]
[1741548743522,1.33134438,559.67,558.88,0.29131369]
[1741548743721,1.33134438,559.67,558.89,0.29131369]
[1741548743926,1.33134438,559.67,558.9,0.29131369]
[1741548744127,1.33134438,559.67,558.91,0.29131369]
[1741548744328,1.33134438,559.67,558.92,0.29131369]
[1741548744525,1.33134438,559.67,559.08,1.32042088]
[1741548744835,1.33134438,559.67,559.09,0.29131369]
[1741548745229,1.33134438,559.67,559.1,0.29129433]
[1741548745625,1.33134438,559.67,559.08,1.32042088]
[1741548745626,1.33134438,559.67,559.11,0.29129433]
[1741548746034,1.33134438,559.67,559.12,0.29129433]
[1741548746232,1.33134438,559.67,559.09,0.29129433]
[1741548746430,1.33134438,559.67,559.1,0.29129433]
[1741548746625,1.33134438,559.67,558.73,2.71816144]
[1741548746626,1.33134438,559.67,559.09,0.29129433]
[1741548746826,1.33134438,559.67,559.1,0.29129433]
[1741548747031,1.33134438,559.67,558.8,0.29129433]
[1741548748433,1.33134438,559.67,558.81,0.29129433]
[1741548748734,1.33134438,559.67,558.82,0.29129433]
[1741548748936,1.33134438,559.67,558.83,0.29129433]
[1741548749134,1.33134438,559.67,558.84,0.29129433]
[1741548749335,0.913,559.59,558.85,0.29129433]
[1741548749535,0.913,559.59,558.86,0.29129433]
[1741548749933,0.913,559.59,558.87,0.29129433]
[1741548750132,0.913,559.59,558.65,0.29129433]
[1741548750334,0.913,559.59,558.66,0.29129433]
[1741548750736,0.913,559.59,558.67,0.29129433]
[1741548751133,0.913,559.59,558.68,0.29129433]
[1741548751336,0.913,559.59,558.69,0.29129433]
[1741548751538,0.913,559.59,558.75,1.32042088]
[1741548751736,0.913,559.59,558.76,0.29129433]
[1741548751934,0.913,559.59,558.75,1.32042088]
[1741548751935,0.913,559.59,558.77,0.29129433]
[1741548752234,0.913,559.59,558.78,0.29129433]
[1741548752432,0.913,559.59,558.75,1.32042088]
[1741548752635,0.913,559.59,558.76,0.29079875]
[1741548752835,0.913,559.59,558.77,0.29079875]
[1741548753138,0.913,559.59,558.78,0.29079875]
[1741548753333,0.913,559.59,558.79,0.29079875]
[1741548753533,0.913,559.59,558.8,0.29079875]
[1741548753741,0.913,559.59,558.76,0.29079875]
[1741548754037,0.913,559.59,558.77,0.29079875]
[1741548754240,0.913,559.59,558.76,0.29079875]
[1741548754541,0.913,559.59,558.77,0.29079875]
[1741548754735,0.913,559.59,558.78,0.29079875]
[1741548754939,0.913,559.59,558.79,0.29079875]
[1741548755139,0.913,559.59,558.8,0.64870855]
[1741548755341,0.913,559.59,558.81,0.64870215]
[1741548755539,0.913,559.59,558.82,0.64869574]
[1741548755740,0.913,559.59,558.83,0.64868934]
[1741548756040,0.913,559.59,558.84,0.64869687]
[1741548756340,0.913,559.59,558.85,0.64869047]
[1741548756544,0.913,559.59,558.86,0.29081269]
[1741548756843,0.913,559.59,558.87,0.64867766]
[1741548757144,0.913,559.59,558.88,0.64867126]
[1741548757334,0.913,559.59,558.89,0.29081269]
[1741548757643,0.913,559.59,558.88,0.35785857]
[1741548757644,0.913,559.59,558.9,0.29081269]
[1741548757844,0.913,559.59,558.91,0.29034737]
[1741548758037,0.913,559.59,558.92,0.29034737]
[1741548758243,0.913,559.59,558.93,0.29034737]
[1741548758442,0.913,559.59,558.94,0.29034737]
[1741548758642,0.913,559.59,558.95,0.29034737]
[1741548758842,0.913,559.59,558.96,0.29034737]
[1741548759045,0.913,559.59,558.88,0.35785857]
[1741548759046,0.913,559.59,558.97,0.29034737]
[1741548759245,0.913,559.59,558.98,0.29034737]
[1741548759546,0.913,559.59,558.99,0.29034737]
[1741548759749,0.913,559.59,559.0,0.29034737]
[1741548759945,0.913,559.59,559.01,0.29034737]
[1741548760250,0.913,559.59,559.02,0.29034737]
[1741548760447,0.913,559.59,558.89,0.29034737]
[1741548760644,0.913,559.59,558.9,0.29034737]
[1741548760947,0.913,559.59,558.91,0.29034737]
[1741548761149,0.913,559.59,558.92,0.29034737]
[1741548761345,1.33134438,559.67,558.88,0.35785857]
[1741548761544,1.33134438,559.67,558.89,0.28971713]
[1741548761747,1.33134438,559.67,558.9,0.28971713]
[1741548762048,1.33134438,559.67,559.03,1.32042088]
[1741548762241,1.33134438,559.67,559.04,0.28971713]
[1741548762444,1.33134438,559.67,559.05,0.28971713]
[1741548762645,1.33134438,559.67,559.06,0.28971713]
[1741548762944,1.33134438,559.67,559.07,0.28971713]
[1741548763248,1.33134438,559.67,559.08,0.28971713]
[1741548763445,1.33134438,559.67,559.09,0.28937457]
[1741548763649,1.33134438,559.67,559.1,0.28937457]
[1741548763951,1.33134438,559.67,559.11,0.28937457]
[1741548764140,1.33134438,559.67,559.03,1.32042088]
[1741548764141,1.33134438,559.67,559.51,1.32042088]
[1741548764547,1.33134438,559.67,559.52,0.28937457]
[1741548767049,1.33134438,559.67,559.53,0.28879828]
[1741548767250,1.33134438,559.67,559.54,0.28879828]
[1741548767548,1.33134438,559.67,559.13,2.71816144]
[1741548767549,1.33134438,559.67,559.55,0.28879828]
[1741548767750,1.33134438,559.67,559.16,0.28879828]
[1741548767946,1.33134438,559.67,559.15,1.32042088]
[1741548767947,1.33134438,559.67,559.17,0.28879828]
[1741548768142,1.33134438,559.67,559.18,0.28879828]
[1741548768450,1.33134438,559.67,559.19,0.28879828]
[1741548768650,1.33134438,559.67,559.2,0.28879828]
[1741548769149,1.33134438,559.67,559.21,0.28879828]
[1741548769358,1.33134438,559.67,559.22,0.28879828]
[1741548769542,1.33134438,559.67,559.23,0.28879828]
[1741548769743,1.33134438,559.67,559.24,0.28879828]
[1741548770052,1.33134438,559.67,559.25,0.28879828]
[1741548770245,1.33134438,559.67,559.26,0.28879828]
[1741548770449,1.33134438,559.67,559.15,1.32042088]
[1741548770645,1.33134438,559.67,559.27,0.28959636]
[1741548770848,1.33134438,559.67,559.28,0.28959636]
[1741548771150,1.33134438,559.67,559.29,0.28959636]
[1741548771352,1.33134438,559.67,559.16,0.28959636]
[1741548771551,1.33134438,559.67,559.3,0.28959636]
[1741548771750,1.33134438,559.67,559.31,0.28959636]
[1741548771951,1.33134438,559.67,559.32,0.28959636]
[1741548772255,1.33134438,559.67,559.33,0.28959636]
[1741548772553,1.33134438,559.67,559.34,0.28959636]
[1741548772745,1.33134438,559.67,559.16,0.28959636]
[1741548772952,1.33134438,559.67,559.17,0.64726933]
[1741548773150,1.33134438,559.67,559.18,0.28965713]
[1741548774747,1.33134438,559.67,559.19,0.28965713]
[1741548775054,1.33134438,559.67,559.2,0.28965713]
[1741548775254,1.33134438,559.67,559.21,0.28965713]
[1741548775453,1.33134438,559.67,559.22,0.28965713]
[1741548775652,1.33134438,559.67,559.23,0.28965713]
[1741548775948,1.33134438,559.67,559.24,0.28965713]
[1741548776152,1.33134438,559.67,559.25,0.28965713]
[1741548776349,1.33134438,559.67,559.26,0.28965713]
[1741548776553,1.33134438,559.67,559.18,0.28965713]
[1741548776755,1.33134438,559.67,559.19,0.28965713]
[1741548776949,1.33134438,559.67,559.18,0.28965713]
[1741548777151,1.33134438,559.67,559.19,0.28965713]
[1741548777456,1.33134438,559.67,559.2,0.28965713]
[1741548777657,1.33134438,559.67,559.21,0.28979331]
[1741548777952,1.33134438,559.67,559.22,0.28979331]
[1741548778158,1.33134438,559.67,559.23,0.28979331]
[1741548778353,1.33134438,559.67,559.24,0.28979331]
[1741548778552,1.33134438,559.67,559.25,0.28978866]
[1741548778755,1.33134438,559.67,559.26,0.28978866]
[1741548778955,1.33134438,559.67,559.27,0.28978866]
[1741548779157,1.33134438,559.67,559.18,0.28978866]
[1741548779457,1.33134438,559.67,559.19,0.28978866]
[1741548779661,1.33134438,559.67,559.2,0.28978866]
[1741548779955,1.33134438,559.67,559.17,0.35767297]
[1741548779956,1.33134438,559.67,559.21,0.28978866]
[1741548780159,1.33134438,559.67,559.18,0.28978866]
[1741548780459,1.33134438,559.67,559.19,0.28978866]
[1741548780660,1.33134438,559.67,559.2,0.28978866]
[1741548780959,1.33134438,559.67,559.17,0.35767297]
[1741548781155,1.33134438,559.67,559.18,0.29008311]
[1741548781350,1.33134438,559.67,559.19,0.29003801]
[1741548781552,1.33134438,559.67,559.2,0.29003801]
[1741548781757,1.33134438,559.67,559.18,0.29003801]
[1741548781951,1.33134438,559.67,559.19,0.29003801]
[1741548782153,1.33134438,559.67,559.18,0.29003801]
[1741548782354,1.33134438,559.67,559.19,0.29003801]
[1741548782758,1.33134438,559.67,559.2,0.29003801]
[1741548782954,1.33134438,559.67,559.18,0.29003801]
[1741548783157,1.33134438,559.67,559.19,0.29003801]
[1741548783361,1.33134438,559.67,559.18,0.29003801]
[1741548783660,1.33134438,559.67,559.19,0.29003801]
[1741548783858,1.33134438,559.67,559.18,0.29003801]
[1741548784160,1.33134438,559.67,559.19,0.29003801]
[1741548784359,1.33134438,559.67,559.18,0.29003801]
[1741548784656,1.33134438,559.67,559.19,0.29003801]
[1741548784860,1.33134438,559.67,559.2,0.29003801]
[1741548785054,1.33134438,559.67,559.18,0.29003801]
[1741548785259,1.33134438,559.67,559.19,0.29003801]
[1741548785461,1.33134438,559.67,559.18,0.29003801]
[1741548785659,1.33134438,559.67,559.19,0.29003801]
[1741548785861,1.33134438,559.67,559.18,0.29003801]
[1741548786061,1.33134438,559.67,559.19,0.29003801]
[1741548786257,1.33134438,559.67,559.18,0.29003801]
[1741548786561,1.33134438,559.67,559.19,0.29003801]
[1741548786762,1.33134438,559.67,559.2,0.29003801]
[1741548787064,1.33134438,559.67,559.21,0.29003801]
[1741548787361,1.33134438,559.67,559.22,0.29003801]
[1741548787562,1.33134438,559.67,559.18,0.29003801]
[1741548787864,1.33134438,559.67,559.19,0.29003801]
[1741548788161,1.33134438,559.67,559.2,0.29003801]
[1741548788562,1.33134438,559.67,559.21,0.29003801]
[1741548788862,1.33134438,559.67,559.22,0.29003801]
[1741548789063,1.33134438,559.67,559.23,0.29003801]
[1741548789263,1.33134438,559.67,559.24,0.29003801]
[1741548789565,1.33134438,559.67,559.25,0.29003801]
[1741548789959,1.33134438,559.67,559.26,0.29003801]
[1741548790164,1.33134438,559.67,559.27,0.29003801]
[1741548790459,1.33134438,559.67,559.28,0.64764064]
[1741548790661,1.33134438,559.67,559.29,0.64763424]
[1741548790965,1.33134438,559.67,559.3,0.29003801]
[1741548791264,1.33134438,559.67,559.31,0.29003801]
[1741548791462,1.33134438,559.67,559.32,0.29003801]
[1741548791658,1.33134438,559.67,559.33,0.28896439]
[1741548791864,1.33134438,559.67,559.34,0.28896439]
[1741548792066,1.33134438,559.67,559.35,0.28896439]